[Event "Festival Groningen-A 2024"]
[Site "Groningen"]
[Date "2024.12.27"]
[Round "6.18"]
[White "Ritzerveld, Noah"]
[Black "Weber, Samuel"]
[Result "1-0"]
[ECO "C95"]
[WhiteElo "2182"]
[BlackElo "2263"]
[Annotator "RC"]
[PlyCount "127"]
[EventDate "2024.12.21"]
[EventType "swiss"]
[EventCountry "NED"]
[SourceTitle "playchess.com"]
[Source "ChessBase"]
[SourceQuality "1"]
[TimeControl "40/5400+30:1800+30"]

1. e4 {[%emt 0:00:03]} e5 {[%emt 0:00:44]} 2. Nf3 {[%emt 0:00:10]} Nc6 {[%emt 0:00:05]} 3. Bb5 {[%emt 0:00:49]} a6 {[%emt 0:00:06]} 4. Ba4 {[%emt 0:00:05]} Nf6 {[%emt 0:01:06]} 5. O-O {[%emt 0:00:19]} b5 {[%emt 0:03:45]} 6. Bb3 {[%emt 0:00:10]} Be7 {[%emt 0:00:04]} 7. Re1 {[%emt 0:00:38]} d6 {[%emt 0:03:43]} 8. c3 {[%emt 0:01:00]} O-O {[%emt 0:00:20]} 9. h3 {[%emt 0:00:19]} Nb8 {[%emt 0:00:39]} 10. d4 {[%emt 0:00:38]} Nbd7 {[%emt 0:00:05]} 11. Nbd2 {[%emt 0:00:22]} Bb7 {[%emt 0:00:05]} 12. Bc2 {[%emt 0:04:18]} c5 {[%emt 0:01:00]} 13. d5 {[%emt 0:02:58]} c4 {[%emt 0:17:11]} 14. Nf1 {[%emt 0:04:07]} Nc5 {[%emt 0:01:06]} 15. Ng3 {[%emt 0:08:24]} g6 {[%emt 0:00:10]} 16. Be3 {[%emt 0:06:10]} Nfd7 {[%emt 0:06:26]} 17. b4 {[%emt 0:04:51]} cxb3 {[%emt 0:03:28]} 18. axb3 {[%emt 0:00:18]} a5 {[%emt 0:00:59]} 19. b4 {[%emt 0:11:44]} axb4 {[%emt 0:02:21]} 20. cxb4 {[%emt 0:00:44]} Na4 {[%emt 0:26:28]} 21. Bxa4 {[%emt 0:02:20]} bxa4 {[%emt 0:00:04]} 22. Rxa4 {[%emt 0:00:48]} f5 {[%emt 0:06:02]} 23. Bh6 {[%emt 0:09:10]} Rf7 {[%emt 0:01:03]} 24. Rxa8 {[%emt 0:05:17]} Qxa8 {[%emt 0:02:48]} 25. Ng5 {[%emt 0:07:47]} Bxg5 {[%emt 0:03:10]} 26. Bxg5 {[%emt 0:00:21]} f4 {[%emt 0:08:59]} 27. Nf1 {[%emt 0:03:41]} Kg7 {[%emt 0:00:51]} 28. Qa1 {[%emt 0:02:07]} Qb8 {[%emt 0:03:38]} 29. g3 {[%emt 0:03:13]} fxg3 {[%emt 0:02:57]} 30. Nxg3 {[%emt 0:00:43]} Bc8 {[%emt 0:00:18]} 31. Qc3 {[%emt 0:04:15]} Nf6 {[%emt 0:04:19]} 32. Kg2 {[%emt 0:01:26]} h6 {[%emt 0:01:42]} 33. Be3 {[%emt 0:03:15]} Kh7 {[%emt 0:00:32]} 34. Rc1 {[%emt 0:01:50]} Bd7 {[%emt 0:00:08]} 35. Qd2 {[%emt 0:04:13]} Nh5 {[%emt 0:00:05]} 36. Nxh5 {[%emt 0:04:54]} gxh5 {[%emt 0:00:02]} 37. Rg1 {[%emt 0:03:56]} Qd8 {[%emt 0:00:06]} 38. Qd3 {[%emt 0:01:25]} Qh4 {[%emt 0:02:15]} 39. Bb6 {[%emt 0:00:23]} Rg7+ {[%emt 0:00:38]} 40. Kh2 {[%emt 0:00:35]} Qf4+ {[%emt 0:00:25]} 41. Kh1 {[%emt 0:30:35]} Rxg1+ {[%emt 0:11:42]} 42. Kxg1 {[%emt 0:00:00]} h4 {[%emt 0:07:07]} 43. Qe3 {[%emt 0:00:00]} Qf8 {[%emt 0:01:10]} 44. Kh2 {[%emt 0:00:00]} Bb5 {[%emt 0:00:49]} 45. Qc1 {[%emt 0:00:00]} Bd3 {[%emt 0:02:42]} 46. Qe3 {[%emt 0:00:00]} Bb5 {[%emt 0:01:22]} 47. Ba5 {[%emt 0:00:00]} Kh8 {[%emt 0:03:25]} 48. f3 {[%emt 0:00:00]} Kh7 {[%emt 0:01:38]} 49. Bb6 {[%emt 0:00:00]} Bf1 {[%emt 0:01:13]} 50. f4 {[%emt 0:00:00]} exf4 {[%emt 0:03:45]} 51. Qf3 {[%emt 0:00:00]} Bb5 {[%emt 0:00:18]} 52. Be3 {[%emt 0:00:00]} Bd3 {[%emt 0:00:30]} 53. Bxf4 {[%emt 0:00:00]} Bb1 {[%emt 0:00:42]} 54. Qe3 {[%emt 0:02:04]} Qf6 {[%emt 0:00:43]} 55. e5 {[%emt 0:00:46]} Qg6 {[%emt 0:00:11]} 56. exd6 {[%emt 0:00:53]} Be4 {[%emt 0:00:06]} 57. Qa7+ {[%emt 0:00:30]} Kg8 {[%emt 0:00:18]} 58. Qb8+ {[%emt 0:00:27]} Kf7 {[%emt 0:01:19]} 59. Qc7+ {[%emt 0:00:08]} Kf8 {[%emt 0:00:18]} 60. Qe7+ {[%emt 0:00:08]} Kg8 {[%emt 0:00:04]} 61. Qe6+ {[%emt 0:00:13]} Qxe6 {[%emt 0:00:59]} 62. dxe6 {[%emt 0:00:06]} Kf8 {[%emt 0:00:33]} 63. d7 {[%emt 0:00:05]} Ke7 {[%emt 0:00:06]} 64. Bc7 {[%emt 0:00:04]} 1-0

[Event "Festival Groningen-A 2024"]
[Site "Groningen"]
[Date "2024.12.27"]
[Round "6.19"]
[White "Vijayakumar, Rishi"]
[Black "Grooten, Tommy"]
[Result "1-0"]
[ECO "A73"]
[WhiteElo "2204"]
[BlackElo "2153"]
[Annotator "RC"]
[PlyCount "95"]
[EventDate "2024.12.21"]
[EventType "swiss"]
[EventCountry "NED"]
[SourceTitle "playchess.com"]
[Source "ChessBase"]
[SourceQuality "1"]
[TimeControl "40/5400+30:1800+30"]

1. d4 {[%emt 0:00:13]} Nf6 {[%emt 0:01:04]} 2. c4 {[%emt 0:00:00]} e6 {[%emt 0:00:00]} 3. Nf3 {[%emt 0:00:00]} c5 {[%emt 0:00:00]} 4. d5 {[%emt 0:00:31]} exd5 {[%emt 0:00:00]} 5. cxd5 {[%emt 0:00:15]} d6 {[%emt 0:00:02]} 6. Nc3 {[%emt 0:00:11]} g6 {[%emt 0:00:09]} 7. Nd2 {[%emt 0:00:30]} Bg7 {[%emt 0:00:16]} 8. e4 {[%emt 0:00:10]} O-O {[%emt 0:00:09]} 9. Be2 {[%emt 0:00:16]} Na6 {[%emt 0:00:09]} 10. O-O {[%emt 0:00:57]} Nc7 {[%emt 0:00:09]} 11. Re1 {[%emt 0:02:27]} a6 {[%emt 0:00:51]} 12. a4 {[%emt 0:00:10]} Rb8 {[%emt 0:00:09]} 13. a5 {[%emt 0:01:55]} Bd7 {[%emt 0:01:36]} 14. h3 {[%emt 0:39:59]} Re8 {[%emt 0:04:31]} 15. Bf3 {[%emt 0:02:53]} Bb5 {[%emt 0:07:50]} 16. Nf1 {[%emt 0:01:41]} Bxf1 {[%emt 0:10:09]} 17. Kxf1 {[%emt 0:00:29]} Nb5 {[%emt 0:00:08]} 18. Bf4 {[%emt 0:05:06]} Nd4 {[%emt 0:06:19]} 19. e5 {[%emt 0:06:06]} Nxf3 {[%emt 0:13:45]} 20. Qxf3 {[%emt 0:00:55]} dxe5 {[%emt 0:02:59]} 21. Rxe5 {[%emt 0:13:44]} Qd7 {[%emt 0:00:04]} 22. Rae1 {[%emt 0:01:32]} Nh5 {[%emt 0:04:33]} 23. Rxe8+ {[%emt 0:08:39]} Rxe8 {[%emt 0:00:01]} 24. Rxe8+ {[%emt 0:00:02]} Qxe8 {[%emt 0:00:02]} 25. Be3 {[%emt 0:04:47]} Bd4 {[%emt 0:10:31]} 26. Bxd4 {[%emt 0:00:55]} cxd4 {[%emt 0:00:06]} 27. Qe4 {[%emt 0:00:11]} Qxe4 {[%emt 0:04:50]} 28. Nxe4 {[%emt 0:00:01]} Nf4 {[%emt 0:08:06]} 29. d6 {[%emt 0:01:57]} Kf8 {[%emt 0:08:01]} 30. Nc5 {[%emt 0:00:59]} d3 {[%emt 0:07:46]} 31. Ke1 {[%emt 0:00:09]} Ke8 {[%emt 0:00:25]} 32. Nxb7 {[%emt 0:01:27]} Kd7 {[%emt 0:00:44]} 33. Nc5+ {[%emt 0:01:53]} Kxd6 {[%emt 0:00:01]} 34. Nxa6 {[%emt 0:00:10]} Nxg2+ {[%emt 0:00:17]} 35. Kd2 {[%emt 0:00:03]} Nf4 {[%emt 0:01:59]} 36. h4 {[%emt 0:01:03]} h5 {[%emt 0:00:46]} 37. Nb4 {[%emt 0:02:39]} Ng2 {[%emt 0:01:13]} 38. a6 {[%emt 0:00:52]} Kc7 {[%emt 0:00:07]} 39. Nd5+ {[%emt 0:00:17]} Kb8 {[%emt 0:00:27]} 40. b4 {[%emt 0:02:43]} Ka7 {[%emt 0:04:41]} 41. b5 {[%emt 0:30:22]} Nxh4 {[%emt 0:21:51]} 42. Kxd3 {[%emt 0:00:00]} Nf5 {[%emt 0:02:21]} 43. Kc4 {[%emt 0:00:00]} h4 {[%emt 0:00:20]} 44. Kc5 {[%emt 0:00:00]} Nd6 {[%emt 0:06:27]} 45. Kxd6 {[%emt 0:00:00]} h3 {[%emt 0:00:04]} 46. Kc7 {[%emt 0:00:00]} h2 {[%emt 0:00:05]} 47. Nb4 {[%emt 0:00:00]} h1=Q {[%emt 0:00:30]} 48. b6+ {[%emt 0:00:00]} 1-0

[Event "Festival Groningen-A 2024"]
[Site "Groningen"]
[Date "2024.12.27"]
[Round "6.20"]
[White "Duijker, Rick"]
[Black "Grooten, Herman"]
[Result "1-0"]
[ECO "B21"]
[WhiteElo "2146"]
[BlackElo "2183"]
[Annotator "RC"]
[PlyCount "67"]
[EventDate "2024.12.21"]
[EventType "swiss"]
[EventCountry "NED"]
[SourceTitle "playchess.com"]
[Source "ChessBase"]
[SourceQuality "1"]
[TimeControl "40/5400+30:1800+30"]

1. e4 {[%emt 0:00:09]} c5 {[%emt 0:00:08]} 2. Nf3 {[%emt 0:00:34]} e6 {[%emt 0:00:08]} 3. d4 {[%emt 0:02:05]} cxd4 {[%emt 0:00:06]} 4. c3 {[%emt 0:00:27]} dxc3 {[%emt 0:00:27]} 5. Nxc3 {[%emt 0:00:11]} a6 {[%emt 0:00:46]} 6. Be2 {[%emt 0:00:20]} Nc6 {[%emt 0:00:33]} 7. O-O {[%emt 0:00:28]} Nge7 {[%emt 0:05:56]} 8. Be3 {[%emt 0:01:19]} b5 {[%emt 0:04:05]} 9. Qd2 {[%emt 0:22:11]} Ng6 {[%emt 0:01:24]} 10. Rfd1 {[%emt 0:02:20]} Be7 {[%emt 0:01:27]} 11. Rac1 {[%emt 0:02:36]} O-O {[%emt 0:00:46]} 12. h4 {[%emt 0:19:28]} Nxh4 {[%emt 0:10:24]} 13. Nxh4 {[%emt 0:01:00]} Bxh4 {[%emt 0:00:08]} 14. g3 {[%emt 0:00:29]} Be7 {[%emt 0:00:51]} 15. Kg2 {[%emt 0:01:48]} Qa5 {[%emt 0:01:33]} 16. a3 {[%emt 0:04:42]} b4 {[%emt 0:04:57]} 17. axb4 {[%emt 0:00:20]} Qxb4 {[%emt 0:01:17]} 18. Rh1 {[%emt 0:05:08]} Bb7 {[%emt 0:05:52]} 19. Rh5 {[%emt 0:03:41]} Bf6 {[%emt 0:16:27]} 20. Bc5 {[%emt 0:04:51]} Qb3 {[%emt 0:11:58]} 21. Bd1 {[%emt 0:05:47]} Qc4 {[%emt 0:02:41]} 22. b3 {[%emt 0:01:42]} Bxc3 {[%emt 0:01:17]} 23. Rxc3 {[%emt 0:00:16]} Qxe4+ {[%emt 0:00:57]} 24. Bf3 {[%emt 0:00:31]} Qg6 {[%emt 0:02:54]} 25. Bxf8 {[%emt 0:00:54]} Rxf8 {[%emt 0:02:17]} 26. Qxd7 {[%emt 0:08:57]} Nd8 {[%emt 0:00:36]} 27. Rhc5 {[%emt 0:01:38]} Bxf3+ {[%emt 0:00:27]} 28. Rxf3 {[%emt 0:00:05]} f5 {[%emt 0:04:02]} 29. Rc8 {[%emt 0:02:25]} Qg5 {[%emt 0:02:37]} 30. Rd3 {[%emt 0:01:17]} Nf7 {[%emt 0:01:44]} 31. Rxf8+ {[%emt 0:03:14]} Kxf8 {[%emt 0:00:04]} 32. Qc8+ {[%emt 0:00:08]} Ke7 {[%emt 0:00:14]} 33. Rd7+ {[%emt 0:00:13]} Kf6 {[%emt 0:00:07]} 34. Qf8 {[%emt 0:00:48]} 1-0

[Event "Festival Groningen-A 2024"]
[Site "Groningen"]
[Date "2024.12.27"]
[Round "6.21"]
[White "Avetisyan, Ani"]
[Black "Van Roon, Sjoerd"]
[Result "1-0"]
[ECO "A59"]
[WhiteElo "2059"]
[BlackElo "2285"]
[Annotator "RC"]
[PlyCount "63"]
[EventDate "2024.12.21"]
[EventType "swiss"]
[EventCountry "NED"]
[SourceTitle "playchess.com"]
[Source "ChessBase"]
[SourceQuality "1"]
[TimeControl "40/5400+30:1800+30"]

1. d4 {[%emt 0:00:03]} Nf6 {[%emt 0:00:06]} 2. c4 {[%emt 0:00:15]} c5 {[%emt 0:00:07]} 3. d5 {[%emt 0:01:00]} b5 {[%emt 0:00:09]} 4. cxb5 {[%emt 0:00:22]} a6 {[%emt 0:00:03]} 5. bxa6 {[%emt 0:00:23]} Bxa6 {[%emt 0:00:06]} 6. Nc3 {[%emt 0:01:56]} d6 {[%emt 0:00:17]} 7. Nf3 {[%emt 0:01:38]} g6 {[%emt 0:01:31]} 8. e4 {[%emt 0:00:33]} Bxf1 {[%emt 0:00:05]} 9. Kxf1 {[%emt 0:00:06]} Bg7 {[%emt 0:00:13]} 10. g3 {[%emt 0:00:36]} O-O {[%emt 0:00:12]} 11. Kg2 {[%emt 0:00:23]} Nbd7 {[%emt 0:00:04]} 12. h3 {[%emt 0:00:24]} Qa5 {[%emt 0:02:07]} 13. Re1 {[%emt 0:01:01]} Nb6 {[%emt 0:02:11]} 14. e5 {[%emt 0:07:25]} Nfd7 {[%emt 0:09:42]} 15. Bg5 {[%emt 0:14:24]} Nxe5 {[%emt 0:19:23]} 16. Nxe5 {[%emt 0:02:24]} Bxe5 {[%emt 0:00:29]} 17. Rxe5 {[%emt 0:01:19]} dxe5 {[%emt 0:00:23]} 18. Bxe7 {[%emt 0:00:04]} Rfe8 {[%emt 0:11:18]} 19. d6 {[%emt 0:01:08]} Qa7 {[%emt 0:09:24]} 20. Qf3 {[%emt 0:07:56]} Rab8 {[%emt 0:09:27]} 21. a4 {[%emt 0:06:42]} Nd7 {[%emt 0:10:12]} 22. Ra2 {[%emt 0:09:11]} Rb4 {[%emt 0:02:51]} 23. a5 {[%emt 0:16:10]} Reb8 {[%emt 0:00:49]} 24. Ne4 {[%emt 0:06:08]} Rxb2 {[%emt 0:05:10]} 25. Rxb2 {[%emt 0:00:57]} Rxb2 {[%emt 0:00:05]} 26. Nf6+ {[%emt 0:00:43]} Nxf6 {[%emt 0:00:05]} 27. Bxf6 {[%emt 0:00:13]} Qb7 {[%emt 0:02:03]} 28. d7 {[%emt 0:00:34]} Rxf2+ {[%emt 0:00:54]} 29. Kxf2 {[%emt 0:00:54]} Qb2+ {[%emt 0:00:05]} 30. Kg1 {[%emt 0:01:16]} Qc1+ {[%emt 0:01:51]} 31. Kh2 {[%emt 0:00:17]} Qd2+ {[%emt 0:00:03]} 32. Qg2 {[%emt 0:00:06]} 1-0

[Event "Festival Groningen-A 2024"]
[Site "Groningen"]
[Date "2024.12.27"]
[Round "6.22"]
[White "De Boer, Bas"]
[Black "Ponnio, Toni"]
[Result "1-0"]
[ECO "D36"]
[WhiteElo "2157"]
[BlackElo "2111"]
[Annotator "RC"]
[PlyCount "179"]
[EventDate "2024.12.21"]
[EventType "swiss"]
[EventCountry "NED"]
[SourceTitle "playchess.com"]
[Source "ChessBase"]
[SourceQuality "1"]
[TimeControl "40/5400+30:1800+30"]

1. c4 {[%emt 0:00:02]} e6 {[%emt 0:00:24]} 2. Nf3 {[%emt 0:00:09]} d5 {[%emt 0:00:11]} 3. d4 {[%emt 0:00:06]} Nf6 {[%emt 0:00:11]} 4. Nc3 {[%emt 0:00:27]} h6 {[%emt 0:00:30]} 5. cxd5 {[%emt 0:00:56]} exd5 {[%emt 0:00:10]} 6. Bf4 {[%emt 0:00:15]} Bd6 {[%emt 0:00:17]} 7. e3 {[%emt 0:01:02]} O-O {[%emt 0:04:11]} 8. Bxd6 {[%emt 0:01:42]} Qxd6 {[%emt 0:00:07]} 9. Qc2 {[%emt 0:00:04]} c6 {[%emt 0:06:59]} 10. Bd3 {[%emt 0:00:07]} Nbd7 {[%emt 0:00:44]} 11. O-O {[%emt 0:00:17]} Re8 {[%emt 0:02:47]} 12. h3 {[%emt 0:03:25]} Qe7 {[%emt 0:01:50]} 13. Nd2 {[%emt 0:05:54]} Nf8 {[%emt 0:07:01]} 14. Rae1 {[%emt 0:02:11]} Ne6 {[%emt 0:09:06]} 15. f4 {[%emt 0:01:21]} c5 {[%emt 0:05:00]} 16. Nf3 {[%emt 0:04:57]} Bd7 {[%emt 0:10:27]} 17. Qf2 {[%emt 0:08:36]} cxd4 {[%emt 0:04:34]} 18. exd4 {[%emt 0:02:47]} Qb4 {[%emt 0:05:38]} 19. f5 {[%emt 0:01:35]} Nf8 {[%emt 0:03:34]} 20. Ne5 {[%emt 0:00:55]} Bc6 {[%emt 0:01:07]} 21. Re2 {[%emt 0:05:32]} Red8 {[%emt 0:07:45]} 22. Rfe1 {[%emt 0:01:53]} N8h7 {[%emt 0:05:25]} 23. Kh1 {[%emt 0:04:24]} Rd6 {[%emt 0:01:51]} 24. a3 {[%emt 0:01:46]} Qb6 {[%emt 0:01:04]} 25. Qg3 {[%emt 0:08:42]} Be8 {[%emt 0:07:04]} 26. Bb1 {[%emt 0:05:02]} Rad8 {[%emt 0:00:43]} 27. Qh4 {[%emt 0:02:59]} Ng5 {[%emt 0:02:30]} 28. Ng4 {[%emt 0:02:04]} Bc6 {[%emt 0:01:05]} 29. Nxf6+ {[%emt 0:05:17]} Rxf6 {[%emt 0:00:14]} 30. Qg4 {[%emt 0:02:45]} Ne4 {[%emt 0:01:45]} 31. Rd1 {[%emt 0:11:40]} Bb5 {[%emt 0:06:39]} 32. Rxe4 {[%emt 0:06:55]} dxe4 {[%emt 0:00:16]} 33. Nxe4 {[%emt 0:00:06]} Ba4 {[%emt 0:03:38]} 34. Nxf6+ {[%emt 0:05:08]} Qxf6 {[%emt 0:00:02]} 35. Rd2 {[%emt 0:00:17]} Bc6 {[%emt 0:01:01]} 36. Kh2 {[%emt 0:02:15]} Bd5 {[%emt 0:00:30]} 37. Qf4 {[%emt 0:03:07]} Re8 {[%emt 0:01:25]} 38. Bd3 {[%emt 0:00:38]} g5 {[%emt 0:00:49]} 39. Qf2 {[%emt 0:00:42]} Kg7 {[%emt 0:00:42]} 40. Re2 {[%emt 0:00:45]} Rxe2 {[%emt 0:00:40]} 41. Bxe2 {[%emt 0:30:30]} Be4 {[%emt 0:05:55]} 42. g4 {[%emt 0:00:00]} Qd6+ {[%emt 0:07:53]} 43. Kg1 {[%emt 0:00:00]} Qc6 {[%emt 0:02:28]} 44. Bf1 {[%emt 0:00:00]} f6 {[%emt 0:00:35]} 45. Qe3 {[%emt 0:00:00]} Bd5 {[%emt 0:01:12]} 46. Qe7+ {[%emt 0:00:00]} Bf7 {[%emt 0:00:09]} 47. Qe3 {[%emt 0:00:00]} Bd5 {[%emt 0:00:08]} 48. Qc3 {[%emt 0:00:00]} Qd6 {[%emt 0:01:33]} 49. Bg2 {[%emt 0:00:00]} Bxg2 {[%emt 0:04:29]} 50. Kxg2 {[%emt 0:00:00]} Qf4 {[%emt 0:00:17]} 51. Qd3 {[%emt 0:00:00]} h5 {[%emt 0:00:34]} 52. gxh5 {[%emt 0:00:00]} Kh6 {[%emt 0:00:33]} 53. d5 {[%emt 0:00:00]} Qc1 {[%emt 0:01:24]} 54. Qc3 {[%emt 0:00:00]} Qd1 {[%emt 0:01:48]} 55. Qxf6+ {[%emt 0:00:00]} Kh7 {[%emt 0:00:05]} 56. Qg6+ {[%emt 0:00:00]} Kh8 {[%emt 0:00:01]} 57. Qh6+ {[%emt 0:00:00]} Kg8 {[%emt 0:00:13]} 58. Qxg5+ {[%emt 0:00:00]} Kh8 {[%emt 0:00:29]} 59. h6 {[%emt 0:05:17]} Qxd5+ {[%emt 0:01:57]} 60. Kg3 {[%emt 0:00:04]} Qe5+ {[%emt 0:00:22]} 61. Kg4 {[%emt 0:00:58]} Qe2+ {[%emt 0:00:28]} 62. Kh4 {[%emt 0:00:24]} Qe1+ {[%emt 0:00:33]} 63. Qg3 {[%emt 0:01:11]} Qe7+ {[%emt 0:00:22]} 64. Kh5 {[%emt 0:00:18]} Qe8+ {[%emt 0:00:16]} 65. Qg6 {[%emt 0:00:12]} Qe2+ {[%emt 0:00:07]} 66. Kg5 {[%emt 0:00:10]} Qd2+ {[%emt 0:00:44]} 67. Kf6 {[%emt 0:01:05]} Qd6+ {[%emt 0:00:37]} 68. Kf7 {[%emt 0:00:07]} Qd7+ {[%emt 0:00:11]} 69. Kf8 {[%emt 0:00:10]} Qd8+ {[%emt 0:00:12]} 70. Kf7 {[%emt 0:00:44]} Qd7+ {[%emt 0:00:05]} 71. Kf6 {[%emt 0:00:17]} Qd6+ {[%emt 0:00:05]} 72. Kg5 {[%emt 0:00:16]} Qd2+ {[%emt 0:00:08]} 73. Kh5 {[%emt 0:00:56]} Qe2+ {[%emt 0:00:12]} 74. Qg4 {[%emt 0:00:08]} Qe8+ {[%emt 0:00:16]} 75. Kg5 {[%emt 0:01:10]} Qe3+ {[%emt 0:00:52]} 76. Qf4 {[%emt 0:00:15]} Qe7+ {[%emt 0:05:35]} 77. f6 {[%emt 0:00:26]} Qc5+ {[%emt 0:00:06]} 78. Kh4 {[%emt 0:00:18]} Kh7 {[%emt 0:01:50]} 79. b4 {[%emt 0:02:08]} Qc3 {[%emt 0:02:07]} 80. f7 {[%emt 0:01:38]} Qe1+ {[%emt 0:00:11]} 81. Kg5 {[%emt 0:00:22]} Qe7+ {[%emt 0:01:02]} 82. Kh5 {[%emt 0:00:48]} Qe2+ {[%emt 0:00:12]} 83. Kh4 {[%emt 0:00:50]} Qe1+ {[%emt 0:00:27]} 84. Kg4 {[%emt 0:00:10]} Qe2+ {[%emt 0:00:43]} 85. Kf5 {[%emt 0:00:58]} Qh5+ {[%emt 0:01:30]} 86. Ke6 {[%emt 0:00:24]} Qe2+ {[%emt 0:00:16]} 87. Kd7 {[%emt 0:00:52]} Qd3+ {[%emt 0:01:29]} 88. Kc8 {[%emt 0:00:22]} Qc3+ {[%emt 0:00:24]} 89. Kb8 {[%emt 0:00:11]} Qh8+ {[%emt 0:00:54]} 90. f8=Q {[%emt 0:00:08]} 1-0

[Event "Festival Groningen-A 2024"]
[Site "Groningen"]
[Date "2024.12.27"]
[Round "6.23"]
[White "Wempe, Joost"]
[Black "Bakija, Alan"]
[Result "1/2-1/2"]
[ECO "B07"]
[WhiteElo "2233"]
[BlackElo "2233"]
[Annotator "RC"]
[PlyCount "99"]
[EventDate "2024.12.21"]
[EventType "swiss"]
[EventCountry "NED"]
[SourceTitle "playchess.com"]
[Source "ChessBase"]
[SourceQuality "1"]
[TimeControl "40/5400+30:1800+30"]

1. d4 {[%emt 0:00:07]} d6 {[%emt 0:00:04]} 2. Nf3 {[%emt 0:00:14]} Nf6 {[%emt 0:00:05]} 3. g3 {[%emt 0:00:08]} g6 {[%emt 0:00:08]} 4. Bg2 {[%emt 0:00:05]} Bg7 {[%emt 0:00:06]} 5. O-O {[%emt 0:00:04]} O-O {[%emt 0:00:05]} 6. Re1 {[%emt 0:00:06]} Nbd7 {[%emt 0:00:55]} 7. e4 {[%emt 0:00:09]} e5 {[%emt 0:00:04]} 8. Nc3 {[%emt 0:00:30]} c6 {[%emt 0:04:39]} 9. a4 {[%emt 0:00:27]} a5 {[%emt 0:00:49]} 10. h3 {[%emt 0:01:46]} Qc7 {[%emt 0:02:55]} 11. Be3 {[%emt 0:02:46]} Re8 {[%emt 0:00:41]} 12. Qd2 {[%emt 0:02:09]} exd4 {[%emt 0:06:13]} 13. Nxd4 {[%emt 0:00:24]} Nc5 {[%emt 0:03:00]} 14. Bf4 {[%emt 0:08:16]} Bd7 {[%emt 0:18:28]} 15. Nb3 {[%emt 0:34:33]} Nxb3 {[%emt 0:05:58]} 16. cxb3 {[%emt 0:00:48]} Bf8 {[%emt 0:06:50]} 17. Rad1 {[%emt 0:11:33]} Be6 {[%emt 0:03:40]} 18. Bxd6 {[%emt 0:04:13]} Bxd6 {[%emt 0:01:45]} 19. Qxd6 {[%emt 0:00:07]} Qxd6 {[%emt 0:00:23]} 20. Rxd6 {[%emt 0:00:06]} Nd7 {[%emt 0:00:13]} 21. Ne2 {[%emt 0:13:41]} Kf8 {[%emt 0:27:04]} 22. Red1 {[%emt 0:06:29]} Ke7 {[%emt 0:03:03]} 23. Nf4 {[%emt 0:00:33]} Nc5 {[%emt 0:00:41]} 24. Nxe6 {[%emt 0:00:35]} fxe6 {[%emt 0:00:06]} 25. Bf1 {[%emt 0:01:59]} Kf6 {[%emt 0:01:05]} 26. f3 {[%emt 0:04:03]} Nxb3 {[%emt 0:00:49]} 27. Rd7 {[%emt 0:01:14]} Re7 {[%emt 0:01:21]} 28. e5+ {[%emt 0:00:42]} Kf7 {[%emt 0:00:06]} 29. Rxe7+ {[%emt 0:03:29]} Kxe7 {[%emt 0:00:13]} 30. Bc4 {[%emt 0:02:12]} Nc5 {[%emt 0:00:22]} 31. Rd6 {[%emt 0:00:10]} Rf8 {[%emt 0:08:59]} 32. f4 {[%emt 0:00:37]} h6 {[%emt 0:01:49]} 33. Kg2 {[%emt 0:01:31]} g5 {[%emt 0:00:08]} 34. Kf3 {[%emt 0:00:10]} h5 {[%emt 0:01:01]} 35. b3 {[%emt 0:01:21]} h4 {[%emt 0:00:17]} 36. Rd4 {[%emt 0:00:03]} hxg3 {[%emt 0:00:36]} 37. Kxg3 {[%emt 0:00:07]} Rf5 {[%emt 0:00:53]} 38. fxg5 {[%emt 0:00:47]} Rxg5+ {[%emt 0:00:10]} 39. Kf4 {[%emt 0:00:45]} Rh5 {[%emt 0:00:08]} 40. Kg4 {[%emt 0:00:27]} Rxe5 {[%emt 0:00:36]} 41. h4 {[%emt 0:01:28]} Re4+ {[%emt 0:10:35]} 42. Rxe4 {[%emt 0:00:27]} Nxe4 {[%emt 0:00:05]} 43. Kf4 {[%emt 0:08:30]} Nd2 {[%emt 0:00:36]} 44. h5 {[%emt 0:00:21]} Kf6 {[%emt 0:09:10]} 45. h6 {[%emt 0:10:31]} Kg6 {[%emt 0:14:35]} 46. Bxe6 {[%emt 0:01:46]} Kxh6 {[%emt 0:00:10]} 47. Ke3 {[%emt 0:01:22]} Nxb3 {[%emt 0:01:46]} 48. Bxb3 {[%emt 0:00:07]} b5 {[%emt 0:00:04]} 49. Kd4 {[%emt 0:00:08]} bxa4 {[%emt 0:00:06]} 50. Bxa4 {[%emt 0:00:06]} 1/2-1/2

[Event "Festival Groningen-A 2024"]
[Site "Groningen"]
[Date "2024.12.27"]
[Round "6.24"]
[White "Zecha, Oscar"]
[Black "Ratsma, Midas"]
[Result "1-0"]
[ECO "C00"]
[WhiteElo "2134"]
[BlackElo "2326"]
[Annotator "RC"]
[PlyCount "67"]
[EventDate "2024.12.21"]
[EventType "swiss"]
[EventCountry "NED"]
[SourceTitle "playchess.com"]
[Source "ChessBase"]
[SourceQuality "1"]
[TimeControl "40/5400+30:1800+30"]

1. e4 {[%emt 0:00:04]} e5 {[%emt 0:00:03]} 2. Nf3 {[%emt 0:00:04]} Nc6 {[%emt 0:00:03]} 3. Bb5 {[%emt 0:00:03]} Nf6 {[%emt 0:00:13]} 4. d3 {[%emt 0:00:18]} Bc5 {[%emt 0:00:12]} 5. c3 {[%emt 0:00:21]} O-O {[%emt 0:00:06]} 6. O-O {[%emt 0:00:05]} d5 {[%emt 0:00:04]} 7. Nbd2 {[%emt 0:00:20]} dxe4 {[%emt 0:00:06]} 8. dxe4 {[%emt 0:00:05]} Qe7 {[%emt 0:00:14]} 9. Qc2 {[%emt 0:01:18]} Rd8 {[%emt 0:01:03]} 10. h3 {[%emt 0:01:47]} Bd7 {[%emt 0:00:18]} 11. a4 {[%emt 0:03:14]} a6 {[%emt 0:01:12]} 12. Be2 {[%emt 0:07:32]} Nh5 {[%emt 0:02:02]} 13. Rd1 {[%emt 0:13:54]} Bxf2+ {[%emt 0:14:27]} 14. Kxf2 {[%emt 0:03:02]} Qc5+ {[%emt 0:00:05]} 15. Ke1 {[%emt 0:26:07]} Nb4 {[%emt 0:03:57]} 16. Qb1 {[%emt 0:07:46]} Nd3+ {[%emt 0:07:50]} 17. Qxd3 {[%emt 0:01:29]} Nf4 {[%emt 0:00:05]} 18. Nb3 {[%emt 0:03:35]} Nxd3+ {[%emt 0:00:37]} 19. Rxd3 {[%emt 0:03:49]} Qb6 {[%emt 0:00:18]} 20. c4 {[%emt 0:02:41]} Qb4+ {[%emt 0:09:34]} 21. Bd2 {[%emt 0:01:19]} Qxc4 {[%emt 0:00:07]} 22. Nxe5 {[%emt 0:06:10]} Qxe4 {[%emt 0:09:56]} 23. Nxd7 {[%emt 0:00:05]} Re8 {[%emt 0:01:16]} 24. Be3 {[%emt 0:02:53]} Rad8 {[%emt 0:01:14]} 25. Nbc5 {[%emt 0:02:35]} Qxg2 {[%emt 0:08:58]} 26. Kd2 {[%emt 0:00:21]} b6 {[%emt 0:00:06]} 27. Rg1 {[%emt 0:02:50]} Qc6 {[%emt 0:00:05]} 28. Bd4 {[%emt 0:09:38]} Qh6+ {[%emt 0:02:42]} 29. Kd1 {[%emt 0:00:59]} bxc5 {[%emt 0:01:42]} 30. Bxg7 {[%emt 0:00:32]} Qxg7 {[%emt 0:00:10]} 31. Nf6+ {[%emt 0:00:25]} Kf8 {[%emt 0:00:12]} 32. Rxg7 {[%emt 0:00:04]} c4 {[%emt 0:01:25]} 33. Rg8+ {[%emt 0:00:12]} Ke7 {[%emt 0:00:05]} 34. Rxe8+ {[%emt 0:00:05]} 1-0